Cogmind - Beta 14 @@@ ROGUE MODE // 2025.01.20 @ 02:15:26 Player: Beef Result: Destroyed by G-47 Trooper with Particle Gun Performance ------------- Evolutions (3) 1500 Regions Visited (4) 800 Robots Destroyed (70) 350 Value Destroyed (2132) 2132 Prototype IDs (2) 40 Alien Tech Used (0) 0 Bonus (252) 252 TOTAL SCORE: 5074 Bonus ------- Pacifist 200 High Alert Combat Kills 52 Cogmind --------- Core Integrity 0/700 Matter 300/300 Energy 150/150 System Corruption 2% Temperature Cool (9) Movement Core (200) Ox3 Location -7/Factory Parts ------- > --- POWER (1) -------- Light Angular Momentum Engine > --- PROPULSION (4) --- (None) > --- UTILITY (6) ------ Advanced Heat Sink Visual Processing Unit Advanced Visual Processing Unit Hacking Suite System Shield > --- WEAPON (2) ------- (None) > --- INVENTORY (5) ---- Improved Heat Sink Large Storage Unit High-powered Tractor Beam Backup Laser I Heavy Missile Launcher Peak State ------------ > --- POWER ------------ Light Angular Momentum Engine > --- PROPULSION ------- Compact Wheel > --- UTILITY ---------- Advanced Heat Sink Large Storage Unit Visual Processing Unit Advanced Visual Processing Unit Hacking Suite System Shield > --- WEAPON ----------- Heavy Missile Launcher Chainsword > --- INVENTORY -------- Improved Heat Sink High-powered Tractor Beam Backup Laser I [Rating: 31] Favorites ----------- Power Ion Engine Engine Ion Engine Propulsion Light Treads Treads Light Treads Leg Aluminum Leg Wheel Compact Wheel Hover Unit Improved Hover Unit Flight Unit Surge Thruster Utility Visual Processing Unit Device Hardlight Generator Storage Large Storage Unit Processor Visual Processing Unit Hackware Hacking Suite Protection Core Shielding Weapon Improved Assault Rifle Energy Gun Backup Laser I Ballistic Gun Improved Assault Rifle Launcher Rocket Launcher Slashing Weapon Chainsword Build | -11 -10 -9 -8 -7 ------- Run | Yrd Mat Mat Mat Fac Slots Evolved 6 | . . 2 2 2 Power . | . . . . . Propulsion 2 | . . 1 1 . Utility 4 | . . 1 1 2 Weapon . | . . . . . Parts Attached 72 | 8 1 9 29 25 Power 10 | 2 . 3 2 3 Engine 10 | 2 . 3 2 3 Core . | . . . . . Reactor . | . . . . . Propulsion 27 | 2 . 2 15 8 Treads 19 | 2 . 2 14 1 Leg 2 | . . . . 2 Wheel 3 | . . . . 3 Hover 2 | . . . . 2 Flight 1 | . . . 1 . Utility 17 | 1 1 2 4 9 Device 4 | . . . . 4 Storage 4 | 1 1 . 1 1 Processor 3 | . . 2 1 . Hackware 3 | . . . . 3 Protection 3 | . . . 2 1 Artifact . | . . . . . Weapon 18 | 3 . 2 8 5 Energy Gun 1 | 1 . . . . Energy Cannon . | . . . . . Ballistic Gun 10 | 2 . 2 5 1 Ballistic Cannon . | . . . . . Launcher 4 | . . . 3 1 Special Weapon . | . . . . . Impact Weapon . | . . . . . Slashing Weapon 3 | . . . . 3 Piercing Weapon . | . . . . . Special Melee Weapon . | . . . . . Unidentified Prototypes 2 | . . 2 . . Parts Lost 38 | . . . 18 20 Power 3 | . . . 1 2 Propulsion 18 | . . . 9 9 Utility 7 | . . . 3 4 Weapon 10 | . . . 5 5 Highest Loss Streak 12 | . . . 11 12 To Critical Strikes . | . . . . . Average Slot Usage (%) 80 | . 85 84 91 59 Engine 8 | . 14 10 8 4 Treads 22 | . 28 25 33 2 Device 1 | . . . . 7 Storage 7 | . 14 11 8 1 Processor 14 | . . 14 17 15 Hackware 1 | . . . . 6 Protection 2 | . . . 6 . Energy Gun 2 | . . . . 7 Ballistic Gun 14 | . 28 22 16 . Slashing Weapon 1 | . . . . 4 Peak Build Rating 31 | 6 7 15 19 31 Average Rating 13 | 4 6 10 15 19 On Entrance 7 | . 6 6 14 9 Naked Turns . | . . . . . Heaviest Build 34 | 14 34 31 34 33 Greatest Support 83 | 40 40 60 83 20 Greatest Overweight (x) 4 | . . . . 4 Average Overweight (x) . | . . . . . Largest Inventory Capacity 15 | 8 15 15 15 15 Average Capacity 12 | 7 8 15 14 7 Most Carried 14 | 2 3 7 14 5 Average Carried 5 | 1 2 3 9 4 Final Capacity 15 | 8 15 15 5 5 Final Carried 6 | 2 2 6 5 5 Class Distribution -------------------- 59% | Mutant 40% | Scavenger-Mutant Dominant Class ---------------- Mutant | -10/Materials Mutant | -9/Materials Scavenger-Mutant | -8/Materials Mutant | -7/Factory Resources | -11 -10 -9 -8 -7 ----------- Run | Yrd Mat Mat Mat Fac Matter Collected 1621 | 248 . 454 514 405 Remotely . | . . . . . Salvage Created 2722 | . . 911 1077 734 Parts 135 | . . 46 59 30 Haulers Intercepted 3 | . . 2 1 . Recyclers Shooed 6 | . . 2 1 3 Parts Field Recycled . | . . . . . Retrieved Matter . | . . . . . Parts Self-Destructed . | . . . . . Prevented . | . . . . . Kills | -11 -10 -9 -8 -7 ------- Run | Yrd Mat Mat Mat Fac Combat Hostiles Destroyed 46 | . . 9 23 14 Melee 6 | . . . . 6 Guns 29 | . . 9 17 3 AOE 9 | . . . 6 3 Classes Destroyed 14 | . . 7 4 3 Worker 8 | . . 3 1 4 Builder 3 | . . 2 1 . Tunneler 1 | . . . 1 . Hauler 3 | . . 2 1 . Recycler 4 | . . 3 . 1 Operator 1 | . . . . 1 Watcher 4 | . . 3 1 . Swarmer 2 | . . . . 2 Cutter 2 | . . . 2 . Grunt 33 | . . 8 16 9 Brawler 2 | . . . 2 . Duelist 2 | . . 1 1 . Sentry 4 | . . . 2 2 Programmer 1 | . . . . 1 Best Kill Streak 8 | . . 5 6 8 Combat Bots Only 6 | . . 2 6 6 Max Kills in Single Turn 2 | . . 2 2 2 Gunslinging . | . . . . . Exploded 2 | . . . 2 2 Melee 1 | . . . . 1 Uniques/NPCs Destroyed . | . . . . . Combat | -11 -10 -9 -8 -7 -------- Run | Yrd Mat Mat Mat Fac Hostile Shots Fired 430 | . . 51 144 235 Missed 132 | . . 14 48 70 Damage Taken 4580 | . . 421 2111 2048 Core 1012 | . . 66 242 704 Absorbed by Shields 196 | . . . . 196 Redirected to Shielding 38 | . . . 38 . Core Remaining (%) 84 | 100 100 83 56 . Volleys Fired 170 | . . 57 74 39 Largest 2 | . . 2 2 2 Hottest 60 | . . 46 46 60 Shots Fired 318 | . . 114 132 72 Gun 307 | . . 114 123 70 Cannon . | . . . . . Launcher 11 | . . . 9 2 Special . | . . . . . Kinetic 245 | . . 114 123 8 Thermal 62 | . . . . 62 Explosive 11 | . . . 9 2 Electromagnetic . | . . . . . Robot Hit Streak 26 | . . 14 26 13 Robot Miss Streak 4 | . . 3 2 4 Penetration Max . | . . . . . Secondary Targets 4 | . . . 4 . Max Gunslinging Chain 1 | . . . 1 . Shots Hit Robots 263 | . . 76 98 89 Core Hits 135 | . . 33 63 39 Critical Kills . | . . . . . Critical Parts Destroyed 1 | . . 1 . . Critical Strikes 2 | . . 1 . 1 Destroy 1 | . . 1 . . Sever 1 | . . . . 1 Melee Attacks 40 | . . . . 40 Impact . | . . . . . Slashing 40 | . . . . 40 Piercing . | . . . . . Sneak Attacks 8 | . . . . 8 Combat Hostiles . | . . . . . Follow-up Attacks 1 | . . . . 1 Damage Inflicted 5752 | . . 1136 2283 2333 Guns 3182 | . . 1136 1422 624 Cannons . | . . . . . Explosions 1253 | . . . 858 395 Melee 1313 | . . . . 1313 Ramming 4 | . . . 3 1 Kinetic 2722 | . . 1136 1422 164 Thermal 460 | . . . . 460 Explosive 1253 | . . . 858 395 Electromagnetic . | . . . . . Impact . | . . . . . Slashing 1313 | . . . . 1313 Piercing . | . . . . . Highest Corruption 2 | . . . . 2 Average Corruption 1 | . . . . 1 Corruption Purged . | . . . . . Corruption Blocked . | . . . . . Effects 2 | . . . . 2 Message Errors 1 | . . . . 1 Matter Fused 1 | . . . . 1 Overload Shots . | . . . . . Overflow Damage 256 | . . . 12 244 Projectiles . | . . . . . Explosions 22 | . . . 12 10 Melee 234 | . . . . 234 Knockbacks . | . . . . . Impact . | . . . . . Kinetic . | . . . . . Secondary . | . . . . . Self-Inflicted Damage 154 | . . . 154 . Shots 4 | . . . 4 . Rammed 4 | . . . 2 2 Targets Rammed 4 | . . . 2 2 Kicked . | . . . . . Crushed . | . . . . . Highest Temperature 40 | . . 4 40 27 Average Temperature 8 | . . 4 7 8 Received Heat Transfer 1896 | . . 216 756 924 Siege Activations . | . . . . . Robots Corrupted . | . . . . . Combat Hostiles . | . . . . . Parts Fried . | . . . . . Impact Corruptions . | . . . . . Robots Melted 2 | . . . . 2 Combat Hostiles 2 | . . . . 2 Parts Melted 9 | . . . . 9 Heat Transferred 1924 | . . . . 1924 Parts Sabotaged . | . . . . . Parts Stolen . | . . . . . Parts Stripped . | . . . . . Power Chain Reactions . | . . . . . Alert | -11 -10 -9 -8 -7 ------- Run | Yrd Mat Mat Mat Fac Peak Influence 436 | . . 223 436 312 Initial 198 | . . . 46 198 Average 164 | . . 101 221 233 Maximum Alert Level 2 | . . 1 2 1 Low Security (%) 56 | 100 100 86 47 14 Level 1 39 | . . 13 39 85 Level 2 4 | . . . 12 . Level 3 . | . . . . . Level 4 . | . . . . . Level 5 . | . . . . . High Security . | . . . . . Max Security . | . . . . . Squads Dispatched 13 | . 1 . 9 3 Investigation 3 | . 1 . 2 . Extermination 1 | . . . . 1 Reinforcement 5 | . . . 4 1 Assault . | . . . . . Garrison 4 | . . . 3 1 Intercept . | . . . . . Searches Triggered . | . . . . . Construction Impeded 1 | . . . 1 . Haulers Reinforced . | . . . . . Active Scanning Responses . | . . . . . Cargo Convoy Interrupts . | . . . . . Stealth | -11 -10 -9 -8 -7 --------- Run | Yrd Mat Mat Mat Fac Distress Signals 4 | . . 1 2 1 Communications Jammed . | . . . . . Distress Signals . | . . . . . Times Spotted 77 | . . 17 40 20 Peak Tracking Total 11 | . . 6 11 5 Tactical Retreats 6 | . . 1 5 . Traps | -11 -10 -9 -8 -7 ------- Run | Yrd Mat Mat Mat Fac Traps Triggered 3 | . 1 . 2 . Indirectly . | . . . . . Trap Hack Attempts . | . . . . . Triggered . | . . . . . Disarmed . | . . . . . Reprogrammed . | . . . . . Reused . | . . . . . Traps Extracted . | . . . . . Installed . | . . . . . Triggered . | . . . . . Machines | -11 -10 -9 -8 -7 ---------- Run | Yrd Mat Mat Mat Fac Machines Disabled 1 | . . 1 . . Max in Single Turn 1 | . . 1 . . Machines Repaired . | . . . . . Machines Dismantled . | . . . . . Machines Sabotaged . | . . . . . Overloaded Fab Kills . | . . . . . Hacking | -11 -10 -9 -8 -7 --------- Run | Yrd Mat Mat Mat Fac Machines Accessed 4 | . . . 2 2 Terminals 2 | . . . 1 1 Fabricators . | . . . . . Repair Stations 1 | . . . . 1 Recycling Units . | . . . . . Scanalyzers 1 | . . . 1 . Garrison Access . | . . . . . Total Hacks 7 | . . . 3 4 Successful 3 | . . . 1 2 Failed 4 | . . . 2 2 Catastrophic . | . . . . . Database Lockouts . | . . . . . Manual 1 | . . . . 1 Terminals 5 | . . . 2 3 Fabricators . | . . . . . Repair Stations 1 | . . . . 1 Recycling Units . | . . . . . Scanalyzers 1 | . . . 1 . Garrison Access . | . . . . . Terminal Hacks 1 | . . . 1 . Zone Layout 1 | . . . 1 . Fabricator Hacks . | . . . . . Repair Station Hacks 1 | . . . . 1 Refit 1 | . . . . 1 Recycling Unit Hacks . | . . . . . Scanalyzer . | . . . . . Garrison Access Hacks . | . . . . . Unauthorized Hacks 1 | . . . . 1 Terminals 1 | . . . . 1 Botnet 1 | . . . . 1 Fabricators . | . . . . . Repair Stations . | . . . . . Recycling Units . | . . . . . Scanalyzers . | . . . . . Garrison Access . | . . . . . Data Cores Recovered . | . . . . . Used . | . . . . . Hacking Detections 3 | . . . 2 1 Full Trace Events . | . . . . . Feedback Events . | . . . . . Feedback Blocked . | . . . . . Robot Schematics Acquired . | . . . . . Robots Built . | . . . . . Authchips . | . . . . . Time . | . . . . . Total Robot Build Rating . | . . . . . Part Schematics Acquired . | . . . . . Parts Built . | . . . . . Authchips . | . . . . . Time . | . . . . . Total Part Build Rating . | . . . . . Parts Repaired . | . . . . . Time . | . . . . . Parts Recycled . | . . . . . Recycled Matter . | . . . . . Retrieved Matter . | . . . . . Retrieved Components . | . . . . . Parts Scanalyzed . | . . . . . Part Schematics Acquired . | . . . . . Parts Damaged . | . . . . . Bothacking | -11 -10 -9 -8 -7 ------------ Run | Yrd Mat Mat Mat Fac Used RIF Installer . | . . . . . Robots Hacked . | . . . . . Non-combat . | . . . . . Combat . | . . . . . Robot Hacks Applied . | . . . . . Relay Couplers Released . | . . . . . Fabnet Peak Effective % . | . . . . . Robots Rewired . | . . . . . Allies Hacked . | . . . . . Hacks Repelled . | . . . . . Allies | -11 -10 -9 -8 -7 -------- Run | Yrd Mat Mat Mat Fac Total Allies . | . . . . . Largest Group . | . . . . . Highest-Rated Group . | . . . . . Highest-Rated Ally . | . . . . . Total Orders . | . . . . . Ally Attacks . | . . . . . Total Damage . | . . . . . Kills . | . . . . . Allies Corrupted . | . . . . . Allies Melted . | . . . . . Intel | -11 -10 -9 -8 -7 ------- Run | Yrd Mat Mat Mat Fac Robot Analysis Total . | . . . . . Derelict Logs Recovered . | . . . . . Drone Launches . | . . . . . Drone Recoveries . | . . . . . Exploration | -11 -10 -9 -8 -7 ------------- Run | Yrd Mat Mat Mat Fac Turns Passed 2023 | 91 166 536 717 513 Spaces Moved 931 | 54 103 208 326 240 Core 53 | 6 . . 13 34 Treads 692 | 48 103 208 266 67 Legs 8 | . . . . 8 Wheels 59 | . . . . 59 Hover 30 | . . . . 30 Flight 89 | . . . 47 42 Fastest Speed 35 | 50 160 160 35 35 Average Speed 136 | 147 160 160 137 103 Slowest Speed 250 | 160 160 160 160 250 Overloaded Moves . | . . . . . Propulsion Burnouts . | . . . . . Robots Hopped 2 | . . . 2 . Cave-ins Triggered . | . . . . . Exploration Rate (%) 17 | 4 24 18 34 9 Regions Visited 4 Branch Regions . Pre-discovered Areas . | . . . . . Known Exits Taken 1 | . . 1 . . Unknown Exits Taken 3 | 1 1 . 1 . Scrap Searched . | . . . . . Spaces Dug . | . . . . . Terrain Destroyed 49 | . . . 43 6 Melee . | . . . . . Projectile . | . . . . . AOE 49 | . . . 43 6 Terrain Rammed . | . . . . . Walls Destroyed . | . . . . . Machines Disabled . | . . . . . Actions | -11 -10 -9 -8 -7 --------- Run | Yrd Mat Mat Mat Fac Total 1282 | 62 105 296 452 367 Wait 41 | . . 17 13 11 Move 923 | 53 102 207 321 240 Hop 2 | . . . 2 . Pick Up 11 | . . 1 5 5 Fast Attach 34 | 7 1 5 5 16 Attach 18 | . . 1 11 6 Detach 10 | 1 1 3 2 3 Swap 20 | 1 . 3 13 3 Drop 10 | . 1 2 4 3 Fire 170 | . . 57 74 39 Melee 39 | . . . . 39 Ram 2 | . . . . 2 Kick . | . . . . . Crush 2 | . . . 2 . Escape Stasis . | . . . . . Rewire . | . . . . . Trap . | . . . . . Miscellaneous . | . . . . . Route ------- -11/Scrapyard -10/Materials -9/Materials -8/Materials -7/Factory History --------- Turn | Location | Event 4 | -11/Scrapyard | Discovered new exit (range 15) 92 | -11/Scrapyard | Entered Materials 208 | -10/Materials | Discovered new exit (range 15) 258 | -10/Materials | Entered another Materials area 258 | -9/Materials | Evolved 2 slots: Propulsion x1, Utility x1 302 | -9/Materials | Build established: Mutant 771 | -9/Materials | Discovered new exit (range 11) 792 | -9/Materials | Identified exit to Materials 794 | -9/Materials | Entered another Materials area 794 | -8/Materials | Evolved 2 slots: Propulsion x1, Utility x1 1083 | -8/Materials | Build established: Scavenger-Mutant 1142 | -8/Materials | Garrison activated, responded to threat 1455 | -8/Materials | Lost 4 parts (1p3n) 1507 | -8/Materials | Discovered new exit (range 11) 1511 | -8/Materials | Entered Factory 1511 | -7/Factory | Evolved 2 slots: Utility x2 1530 | -7/Factory | Lost 11 parts (6n2u3w) 1791 | -7/Factory | Build established: Mutant 1810 | -7/Factory | Core integrity fell below 50% 1877 | -7/Factory | Lost 12 parts (2p3n4u3w) 1920 | -7/Factory | Core integrity fell below 20% 1928 | -7/Factory | Garrison activated, responded to threat 1962 | -7/Factory | Lost 4 parts (3n1w) 2024 | -7/Factory | Destroyed by G-47 Trooper with Particle Gun Last Messages --------------- 01985_ Sneak attack on R-06 Scavenger. 01985_ Destroyed Lgt. Ion Engine. 01986_ K-01 Serf collects debris. 01987_ U-05 Engineer lays Concrete. 01989_ K-01 Serf collects debris. 01990_ U-05 Engineer lays Concrete. 01991_ /M,OLBY8OD4Y2DE9YFWTR50N2W/ 01991_ U-05 Engineer lays Concrete. 01992_ U-05 Engineer builds a Wall. 01993_ K-01 Serf collects debris. 01995_ The unstable cave ceiling collapses. 01996_ K-01 Serf collects debris. 01996_ U-05 Engineer lays Concrete. 01997_ K-01 Serf collects debris. 01997_ U-05 Engineer lays Concrete. 02008_ Acquired 16 matter. 02010_ Com. Wheel destroyed. 02019_ Critical hit (Burn: +37). 02021_ Chainsword destroyed. 02021_ Slammed into G-47 Trooper. Map ----- +----------------------------------------------------+ | #???????????????????????????????????? | | ?????? #???????????????????????????????????? | | ####???# #???????????????????????????????????? | | ##??# #???????????????????????????????????? | | #??# #???????????????????????????????????? | | ]##??# +???????????????????????????????????? | | ####???# #???????????????????????????????????? | | ######## #???????????????????????????????????? | | # ###########?????????????????????????? | | ! # # [ #?????????????????????????? | | # # #?????????????????????????? | | """ # # ##############????????????? | | """"" + # # #????????????? | | """"" # # # """ #????????????? | | ######## # # "T" #????????????? | | ???????# # # #????????????? | | ???????# # # #????????????? | | ???????# ###+#####"# #????????????? | | ???????# # # #????????????? | | ???????# #### !! #????????????? | | ???????# /% !! #????????????? | | ???????# #### !! #????????????? | | ???????# ## # ##???????????? | | ???????######## ## #%% % % #??????????#? | | ??????????????# ####+#####+#######????????? #? | | ??????????????# @ #???????????? #? | | ??????????????# g #??????????? #? | | ??????????????# k #?????????? #? | | ??????????????# #?????????? +? | | ??????????????# #????????? #? | | ??????????????############### #???????? #? | | ????????????????????????????# ######### #? | | ????????????????????????????# g ^ #? | | ????????????????????????????+ ^ #? | | ????????????????????????????# ka #? | | ????????????????????????????# * #? | | ????????????????????????????# % ^ #? | | ????????????????????????????# ########+## #######? | | ????????????????????????????# #???? %%= ?????? | | ????????????????????????????# #???? [ [ ????? | | ????????????????????????????# #??? = #???? | | ????????????????????????????# ??# * #???? | | ????????????????????????????# ??# #???? | | ????????????????????????????# ??# #???? | | ????????????????????????????# ??# #???? | | ????????????????????????????? ??# #???? | | ????????????????????????????? ??# ! #???? | | ????????????????????????????????# #???? | | ????????????????????????????????# ????? | | ????????????????????????????????# ????? | +----------------------------------------------------+ Best States ------------- Heat Dissipation 53 Energy Generation 18 Energy Capacity 275 Matter Stores 300 Matter Capacity 300 Sight Range 20 Robot Scan Range 14 Terrain Scan Density 10 Armor Coverage 150 Core Shielding 20 Evasion (%) 63 Recoil Reduction 4 Offensive Hacking 10 Defensive Hacking 10 Item Schematics ----------------- None Robot Schematics ------------------ None Fabricated ------------ Nothing Alien Tech Used ----------------- None Achievements -------------- None Challenges ------------ None Game ------ Seed PrecisionDrainedClaw Manual? 0 Play Time 00:14:12 Cumulative 166.9 hours Start 2025.01.20 @ 02:02:30 End 2025.01.20 @ 02:15:26 Sessions 1 Manual Loads 0 Difficulty Rogue Special Mode None Game No. 185 Rogue 185 Adventurer 0 Explorer 0 Win Type - Total 3 Types 2/0/1/0/0/0/0/0/0 Lore% 64 Gallery% 72 Achievement% 54 Wizard Run 0 Options --------- Layout 0 ASCII 0 Keyboard 1 Movement Numpad Keybinds 0 Fullscreen 2 Font 18/SmallcapsGlow Map View 76x50 Zoom Use 0% Tactical HUD 1 Map Filters NONE Filters NONE Steam 1 RUN: 6030c14d-b235-4abc-a209-1dfc3083c472